Cogmind - Beta 12 @@@ ROGUE MODE // 2023.04.04 @ 11:50:39 Player: Inkie Result: Self-destructed Performance ------------- Evolutions (6) 3000 Regions Visited (24) 4800 Robots Destroyed (175) 875 Value Destroyed (8901) 8901 Prototype IDs (34) 680 Alien Tech Used (0) 0 Bonus (9602) 9602 TOTAL SCORE: 27858 Bonus ------- High Alert Combat Kills 708 Follower Combat Kills 3586 Entered Garrisons 1400 Used RIF Installer 3000 Aligned with FarCom 300 A7 Reached Mainframe 300 Met R17 at Cetus 500 Friendly Fire -192 Cogmind --------- Core Integrity 1074/1150 Matter 179/300 Energy 8/565 System Corruption 0% Temperature Cool (0) Movement Immobile (Siege) Ox1 Location -4/Garrison Parts ------- > --- POWER (2) -------- Neutrino Core Quantum Reactor > --- PROPULSION (6) --- Improved Treads Centrium Heavy Treads Armored Wheel > --- UTILITY (9) ------ Advanced Cooling System Huge Storage Unit Advanced Launcher Guidance Computer Improved Focal Shield Improved Force Field Improved Hacking Suite > --- WEAPON (2) ------- Antimatter Cannon Hypervelocity Gauss Cannon > --- INVENTORY (25) --- Advanced Power Amplifier Improved Coolant Injector 0b10 Alert Chip Improved Utility Shielding Antimissile System Authchip [R/NC] Authchip [R/Combat] Authchip [R/Combat] Authchip [R/Combat] Authchip [R/Combat] Authchip [R/Combat] Relay Coupler [NC] (32) Relay Coupler [NC] (32) Relay Coupler [NC] (32) Relay Coupler [NC] (31) Relay Coupler [Hunter] (20) Relay Coupler [Heavy] (14) Relay Coupler [Behemoth] (9) Long-range Tractor Beam Firepult YOLO Cannon Peak State ------------ > --- POWER ------------ Quantum Reactor Quantum Reactor > --- PROPULSION ------- Centrium Heavy Treads Centrium Heavy Treads Centrium Heavy Treads > --- UTILITY ---------- Improved Cooling System Huge Storage Unit Improved Armor Integrity Analyzer Centrium Medium Armor Plating Improved Hacking Suite Improved Hacking Suite Improved Hacking Suite > --- WEAPON ----------- Hypervelocity Mass Driver Force Lance > --- INVENTORY -------- Advanced Power Amplifier Improved Cooling System Improved Coolant Injector Advanced Terrain Scanner 0b10 Alert Chip Improved Utility Shielding Centrium Medium Armor Plating Improved Focal Shield Improved System Shield Relay Coupler [NC] Relay Coupler [Grunt] Relay Coupler [Hunter] Relay Coupler [Hunter] Improved System Restoration Module Long-range Tractor Beam Advanced Variable Charge Gun Firepult YOLO Cannon Antimatter Cannon Long-range Missile Launcher Smartbomb Launcher Improved Remote Datajack [Rating: 137] Favorites ----------- Power Quantum Reactor Engine Light Angular Momentum Engine Power Core Neutrino Core Reactor Quantum Reactor Propulsion Centrium Heavy Treads Treads Centrium Heavy Treads Wheel Armored Wheel Utility Huge Storage Unit Device Hardlight Generator Storage Huge Storage Unit Processor Advanced Targeting Computer Hackware Hacking Suite Protection Centrium Medium Armor Plating Weapon Autogun Energy Gun Advanced Variable Charge Gun Energy Cannon HERF Cannon Ballistic Gun Autogun Ballistic Cannon Hypervelocity Mass Driver Launcher Improved Grenade Launcher Special Weapon Improved Remote Datajack Impact Weapon Heavy Mace Piercing Weapon Force Lance Build | -11 -10 -10 -9 -9 -9 -8 -8 -8 -8 -7 -7 -6 -6 -6 -6 -6 -6 -6 -5 -5 -5 -5 -4 -4 ------- Run | Jun Mat Min Mat Min Exi Min Mat Sto Gar Fac Gar Fac Gar Ext Cet Arc Hub Gar Fac Gar Fac Gar Fac Gar Slots Evolved 12 | . . . 2 . . . 2 . . 2 . 2 . . . . . . 2 . . . 2 . Power 1 | . . . . . . . . . . . . 1 . . . . . . . . . . . . Propulsion 4 | . . . . . . . . . . 2 . . . . . . . . 2 . . . . . Utility 7 | . . . 2 . . . 2 . . . . 1 . . . . . . . . . . 2 . Weapon . | . . . . . . . . . . . . . . . . . . . . . . . . . Parts Attached 170 | 6 2 1 3 1 . 2 23 5 20 5 5 13 9 7 9 10 2 4 6 12 11 12 2 . Power 11 | 1 . . 1 . . . 1 . 1 . 1 1 . 1 2 . . . . 1 1 . . . Engine 5 | 1 . . 1 . . . 1 . 1 . . . . 1 . . . . . . . . . . Core 1 | . . . . . . . . . . . . . . . . . . . . . 1 . . . Reactor 5 | . . . . . . . . . . . 1 1 . . 2 . . . . 1 . . . . Propulsion 26 | 2 . . . . . . 5 . 3 4 1 . 2 . 2 1 . . 1 . 1 4 . . Treads 24 | 2 . . . . . . 5 . 3 4 1 . 2 . 2 1 . . 1 . 1 2 . . Leg . | . . . . . . . . . . . . . . . . . . . . . . . . . Wheel 2 | . . . . . . . . . . . . . . . . . . . . . . 2 . . Hover . | . . . . . . . . . . . . . . . . . . . . . . . . . Flight . | . . . . . . . . . . . . . . . . . . . . . . . . . Utility 75 | 1 2 . 2 1 . . 7 3 3 1 2 4 4 5 3 8 2 1 4 7 8 6 1 . Device 37 | . 1 . 2 1 . . . 1 . 1 2 2 2 3 1 4 1 1 . 4 7 4 . . Storage 4 | 1 1 . . . . . 1 . . . . . . 1 . . . . . . . . . . Processor 4 | . . . . . . . 1 . . . . . 1 . . . 1 . . . . 1 . . Hackware 10 | . . . . . . . 1 . 2 . . . . . . . . . 4 1 1 1 . . Protection 20 | . . . . . . . 4 2 1 . . 2 1 1 2 4 . . . 2 . . 1 . Artifact . | . . . . . . . . . . . . . . . . . . . . . . . . . Weapon 58 | 2 . 1 . . . 2 10 2 13 . 1 8 3 1 2 1 . 3 1 4 1 2 1 . Energy Gun 6 | . . . . . . . 2 1 . . . 1 . . 1 . . . . . 1 . . . Energy Cannon 8 | . . . . . . . . . 2 . . 3 2 . 1 . . . . . . . . . Ballistic Gun 18 | 2 . . . . . 2 5 1 7 . . 1 . . . . . . . . . . . . Ballistic Cannon 9 | . . . . . . . . . . . 1 1 . 1 . 1 . 1 . 2 . 1 1 . Launcher 8 | . . 1 . . . . 2 . 1 . . . . . . . . 2 . 1 . 1 . . Special Weapon 1 | . . . . . . . . . . . . . . . . . . . . 1 . . . . Impact Weapon 4 | . . . . . . . 1 . 3 . . . . . . . . . . . . . . . Slashing Weapon . | . . . . . . . . . . . . . . . . . . . . . . . . . Piercing Weapon 4 | . . . . . . . . . . . . 2 1 . . . . . 1 . . . . . Special Melee Weapon . | . . . . . . . . . . . . . . . . . . . . . . . . . Unidentified Prototypes 8 | . . . . . . . 1 1 . 1 . 2 . . 3 . . . . . . . . . Corrupted Parts 2 | . . . . . . . . . . . . . . . 1 1 . . . . . . . . System Corruption 7 | . . . . . . . . . . . . . . . 2 5 . . . . . . . . Parts Lost 24 | . . . . . . 1 2 1 6 2 . . 1 3 . . . . . 1 1 3 2 1 Power 3 | . . . . . . . 1 . 1 . . . . 1 . . . . . . . . . . Propulsion 6 | . . . . . . . . . 2 1 . . . . . . . . . . . 2 . 1 Utility 9 | . . . . . . . 1 . 2 1 . . . 2 . . . . . 1 1 . 1 . Weapon 6 | . . . . . . 1 . 1 1 . . . 1 . . . . . . . . 1 1 . Highest Loss Streak 3 | . . . . . . 1 1 1 3 1 . . 1 1 . . . . . 1 1 1 2 1 To Critical Strikes . | . . . . . . . . . . . . . . . . . . . . . . . . . Average Slot Usage (%) 90 | . 93 100 86 100 100 98 98 99 92 94 95 95 88 83 86 85 86 86 82 77 81 89 83 81 Engine 4 | . 14 14 11 11 11 11 8 9 8 7 6 . . . . . . . . . . . . . Reactor 5 | . . . . . . . . . . . . 13 13 11 11 13 13 13 11 9 5 5 5 5 Treads 18 | . 28 28 22 22 22 22 18 18 17 25 30 26 15 13 13 13 13 13 17 17 17 18 15 14 Device 14 | . 7 14 20 33 33 33 17 8 9 6 12 11 12 11 7 7 6 6 . 7 13 18 15 15 Storage 7 | . 14 14 11 11 11 11 9 9 9 7 7 6 6 6 6 6 6 6 5 5 5 5 5 5 Processor 7 | . . . . . . . 8 9 9 7 7 6 11 13 13 13 17 20 11 5 . 2 5 5 Hackware 8 | . . . . . . . 5 9 13 23 17 13 13 9 6 1 . . 21 17 17 11 7 5 Protection 5 | . . . . . . . 12 17 8 . . 5 1 1 11 16 15 13 . 1 2 . 2 3 Ballistic Gun 6 | . 28 23 11 11 11 10 11 17 10 15 5 2 . . . . . . . . . . . . Ballistic Cannon 1 | . . . . . . . . . . . 4 . . 3 1 5 6 5 5 4 3 2 7 10 Launcher 2 | . . 4 11 11 11 10 . . . . . . . . . . . 4 3 . . 2 1 . Piercing Weapon 1 | . . . . . . . . . . . . 2 5 6 6 6 6 2 1 3 . . . . Naked Turns . | . . . . . . . . . . . . . . . . . . . . . . . . . Heaviest Build 156 | 13 49 54 64 64 64 64 107 106 115 100 104 140 139 133 149 156 156 150 150 147 147 146 155 155 Greatest Support 240 | 40 40 40 40 40 40 40 42 40 42 82 90 90 120 120 160 160 160 160 240 240 240 240 126 24 Greatest Overweight (x) 6 | . 1 1 1 1 1 1 2 2 2 1 1 1 1 1 1 . . . . . . 6 6 6 Average Overweight (x) 1 | . . 1 1 1 1 1 1 2 2 1 1 1 1 . . . . . . . . 3 5 6 Largest Inventory Capacity 25 | 8 20 20 20 20 20 20 25 25 25 25 25 25 25 25 25 25 25 25 25 25 25 25 25 25 Average Capacity 23 | 6 11 20 20 20 20 20 22 25 25 25 25 25 25 25 25 25 25 25 25 25 25 25 25 25 Most Carried 25 | . 8 13 13 13 20 20 25 25 24 25 25 25 25 25 25 25 25 25 25 25 25 25 25 23 Average Carried 21 | . 2 9 12 12 15 20 21 24 21 22 24 23 24 24 24 24 25 25 24 24 24 24 23 23 Final Capacity 25 | 8 20 20 20 20 20 20 25 25 25 25 25 25 25 25 25 25 25 25 25 25 25 25 25 25 Final Carried 25 | . 8 13 12 13 20 20 25 25 21 25 25 25 25 25 25 25 25 25 25 25 25 25 23 23 Class Distribution -------------------- 36% | Mutant 22% | Scavenger-Mutant 22% | Hacker-Mutant 9% | Commander-Mutant 4% | Bothacker-Mutant 3% | Botlord-Mutant Dominant Class ---------------- Mutant | -10/Materials Mutant | -10/Mines Mutant | -9/Materials Mutant | -9/Mines Mutant | -9/Exiles Mutant | -8/Mines Mutant | -8/Materials Mutant | -8/Storage Mutant | -8/Garrison Hacker-Mutant | -7/Factory Hacker-Mutant | -7/Garrison Hacker-Mutant | -6/Factory Hacker-Mutant | -6/Garrison Commander-Mutant | -6/Extension Scavenger-Mutant | -6/Cetus Scavenger-Mutant | -6/Archives Scavenger-Mutant | -6/Hub_04(d) Scavenger-Mutant | -6/Garrison Hacker-Mutant | -5/Factory Bothacker-Mutant | -5/Garrison Botlord-Mutant | -5/Factory Scavenger-Mutant | -5/Garrison Scavenger-Mutant | -4/Factory Scavenger-Mutant | -4/Garrison Resources | -11 -10 -10 -9 -9 -9 -8 -8 -8 -8 -7 -7 -6 -6 -6 -6 -6 -6 -6 -5 -5 -5 -5 -4 -4 ----------- Run | Jun Mat Min Mat Min Exi Min Mat Sto Gar Fac Gar Fac Gar Ext Cet Arc Hub Gar Fac Gar Fac Gar Fac Gar Matter Collected 5008 | 227 119 37 . 44 22 147 498 230 640 . 147 319 110 225 100 164 . 151 222 429 137 814 226 . Remotely . | . . . . . . . . . . . . . . . . . . . . . . . . . Salvage Created 7178 | . 280 13 . 64 . 192 705 456 566 49 111 727 617 498 267 535 . 328 249 703 192 296 302 28 Parts 364 | . 20 4 . 7 . 12 45 27 22 . 4 26 28 26 5 36 . 15 22 38 8 10 5 4 Haulers Intercepted 4 | . . . . . . . 2 . . . . 2 . . . . . . . . . . . . Recyclers Shooed 6 | . 2 . . . . . . . . . . 1 . 3 . . . . . . . . . . Parts Field Recycled . | . . . . . . . . . . . . . . . . . . . . . . . . . Retrieved Matter . | . . . . . . . . . . . . . . . . . . . . . . . . . Parts Self-Destructed . | . . . . . . . . . . . . . . . . . . . . . . . . . Prevented . | . . . . . . . . . . . . . . . . . . . . . . . . . Kills | -11 -10 -10 -9 -9 -9 -8 -8 -8 -8 -7 -7 -6 -6 -6 -6 -6 -6 -6 -5 -5 -5 -5 -4 -4 ------- Run | Jun Mat Min Mat Min Exi Min Mat Sto Gar Fac Gar Fac Gar Ext Cet Arc Hub Gar Fac Gar Fac Gar Fac Gar Combat Hostiles Destroyed 148 | . 7 3 . 3 . 10 20 11 16 1 4 5 6 2 4 4 . 9 5 19 5 5 8 1 Melee 7 | . . . . . . . 1 . . . . . 1 2 . . . . 2 1 . . . . Guns 43 | . 7 . . . . . 14 11 6 1 . . . . 1 . . . . . 2 1 . . Cannons 43 | . . . . . . . . . 3 . 4 1 4 . 2 4 . 5 3 9 3 1 3 1 AOE 48 | . . 3 . 3 . 10 5 . 7 . . . . . . . . 4 . 9 . 2 5 . Classes Destroyed 18 | . 3 . . . . 2 4 3 1 1 . . 1 . . . . . 1 1 . 1 . . Worker 2 | . . . . . . 1 . . . . . 1 . . . . . . . . . . . . Builder 4 | . . . . . . 1 . . . . . . . 1 . . . . 2 . . . . . Tunneler 1 | . . . . . . . . . . . . . . . . . . . 1 . . . . . Hauler 4 | . . . . . . . 2 . . . . 2 . . . . . . . . . . . . Recycler 4 | . 1 . . . . . . . . . . 1 . 2 . . . . . . . . . . Operator 10 | . . . . . . . 1 . . . . 1 . 1 . 7 . . . . . . . . Watcher 1 | . . . . . . . 1 . . . . . . . . . . . . . . . . . Swarmer 33 | . 3 3 . . . 4 10 3 . . . . . . . . . 3 2 4 . . 1 . Cutter 4 | . . . . . . . . . 3 . . . . . . . . . . . . . . 1 Saboteur 1 | . . . . . . . . . . . . . . . . . . . . 1 . . . . Grunt 64 | . 4 . . 3 . 6 6 2 11 . 3 4 1 . 3 . . 5 3 5 . 1 7 . Brawler 3 | . . . . . . . . 1 . . . . 2 . . . . . . . . . . . Duelist 2 | . . . . . . . . 1 . . . . 1 . . . . . . . . . . . Sentry 21 | . . . . . . . 4 3 2 . . . . 2 . 4 . . . 5 . 1 . . Specialist 1 | . . . . . . . . . . . . . . . . . . . . . . 1 . . Hunter 8 | . . . . . . . . 1 . . 1 1 1 . . . . 1 . 2 . 1 . . Programmer 8 | . . . . . . . . . . 1 . . . . . . . . . 2 5 . . . Behemoth 2 | . . . . . . . . . . . . . 1 . . . . . . . . 1 . . Cetus Guard 1 | . . . . . . . . . . . . . . . 1 . . . . . . . . . Thug 1 | . . . . . . . . . . . . . . 1 . . . . . . . . . . Best Kill Streak 9 | . 4 3 . 3 . 5 9 5 3 1 3 2 2 1 3 4 . 9 2 9 2 2 8 1 Combat Bots Only 9 | . 4 3 . 3 . 4 8 5 3 1 3 2 2 1 3 4 . 9 2 9 2 2 8 1 Max Kills in Single Turn 3 | . 1 3 . 2 . 3 2 1 3 1 1 1 1 1 1 1 . 3 1 2 1 2 2 1 Gunslinging . | . . . . . . . . . . . . . . . . . . . . . . . . . Exploded 3 | . . 3 . 2 . 3 2 . 2 . . . . . . . . 3 . 2 . 2 2 . Melee 1 | . . . . . . . 1 . . . . . 1 1 . . . . 1 1 . . . . Uniques/NPCs Destroyed . | . . . . . . . . . . . . . . . . . . . . . . . . . Combat | -11 -10 -10 -9 -9 -9 -8 -8 -8 -8 -7 -7 -6 -6 -6 -6 -6 -6 -6 -5 -5 -5 -5 -4 -4 -------- Run | Jun Mat Min Mat Min Exi Min Mat Sto Gar Fac Gar Fac Gar Ext Cet Arc Hub Gar Fac Gar Fac Gar Fac Gar Damage Taken 9023 | . 181 30 . 42 . 210 655 572 920 278 201 502 384 553 76 130 . 696 477 1147 504 766 178 521 Core 875 | . 44 . . 12 . 22 62 26 85 14 23 30 73 71 23 . . 26 14 147 55 72 16 60 Absorbed by Shields 3383 | . . . . 8 . 48 272 232 204 . 67 183 140 193 9 . . 371 . 522 112 714 79 229 Reduced by Siege Mode 454 | . . . . . . . . . . . . . . . 8 . . 82 10 172 53 95 . 34 Redirected to Shielding 16 | . . . . . . . . . . . . . . . . . . 16 . . . . . . Regen/Repaired (Parts) 123 | . . . 41 . . . . 23 . . . . 59 . . . . . . . . . . . Core Remaining (%) 82 | 100 . 82 . . . 91 . . 68 . 94 . . . . . . 73 . . . 71 . . Volleys Fired 497 | . 19 2 . 2 . 10 47 34 40 9 30 21 26 26 13 8 . 17 6 53 36 74 15 9 Largest 2 | . 2 2 . 1 . 1 2 2 2 2 1 2 2 1 1 1 . 1 1 1 1 2 2 2 Hottest 240 | . 40 40 . 36 . 36 106 46 100 46 44 176 176 88 240 66 . 66 66 66 240 240 101 101 Shots Fired 664 | . 38 3 . 2 . 10 87 68 63 18 31 36 27 27 13 8 . 17 6 52 36 80 24 18 Gun 313 | . 38 2 . . . . 80 68 52 18 . 6 . . 4 . . . . . 18 27 . . Cannon 276 | . . . . . . . . . 4 . 31 30 27 27 9 8 . 14 6 44 12 28 18 18 Launcher 46 | . . 1 . 2 . 10 7 . 7 . . . . . . . . 3 . 6 . 4 6 . Special 29 | . . . . . . . . . . . . . . . . . . . . 2 6 21 . . Kinetic 428 | . 38 2 . . . . 42 68 52 18 31 6 . 23 . 8 . 14 6 44 12 28 18 18 Thermal 72 | . . . . . . . 19 . 4 . . . . . 4 . . . . . 18 27 . . Explosive 46 | . . 1 . 2 . 10 7 . 7 . . . . . . . . 3 . 6 . 4 6 . Electromagnetic 89 | . . . . . . . 19 . . . . 30 27 4 9 . . . . . . . . . Robot Hit Streak 36 | . 3 4 . . . 13 17 36 9 13 10 12 9 3 7 11 . 18 24 34 15 31 11 12 Robot Miss Streak 4 | . 4 . . . . . 4 2 3 2 2 2 4 3 2 1 . . . 1 3 3 1 2 Penetration Max 1 | . . . . . . . . . . . . . . . . . . 1 . 1 . . . 1 Secondary Targets 6 | . 1 . . . . . 1 2 2 . . . . . . . . . . . . . . . Max Gunslinging Chain 1 | . 1 . . . . . 1 1 1 . . . . . . . . . . . . . . . Shots Hit Robots 513 | . 20 2 . . . 9 65 55 39 15 17 29 23 19 9 21 . 20 13 41 28 58 18 12 Core Hits 279 | . 14 3 . 4 . 24 38 22 28 2 8 10 10 8 4 11 . 11 8 30 5 12 21 6 Critical Kills 26 | . . . . . . . 3 1 . . . . . . . 4 . 5 3 9 . . . 1 Critical Parts Destroyed 28 | . . . . . . . . . . . . . . . . 2 . 5 2 13 . . 3 3 Critical Strikes 69 | . . . . . . . 5 1 . . . 1 1 1 1 8 . 11 6 25 1 . 3 5 Burn 2 | . . . . . . . 2 . . . . . . . . . . . . . . . . . Destroy 56 | . . . . . . . 1 1 . . . . . . . 7 . 10 5 25 . . 3 4 Blast 2 | . . . . . . . . . . . . . . . . . . . . . 1 . . 1 Corrupt 1 | . . . . . . . . . . . . . . . 1 . . . . . . . . . Smash 2 | . . . . . . . 2 . . . . . . . . . . . . . . . . . Impale 6 | . . . . . . . . . . . . 1 1 1 . 1 . 1 1 . . . . . Melee Attacks 101 | . . . . . . . 11 . 4 . . 6 12 20 . 15 5 7 16 5 . . . . Impact 15 | . . . . . . . 11 . 4 . . . . . . . . . . . . . . . Slashing . | . . . . . . . . . . . . . . . . . . . . . . . . . Piercing 86 | . . . . . . . . . . . . 6 12 20 . 15 5 7 16 5 . . . . Sneak Attacks 23 | . . . . . . . 1 . . . . 4 . 6 . 10 . . 2 . . . . . Combat Hostiles . | . . . . . . . . . . . . . . . . . . . . . . . . . Follow-up Attacks . | . . . . . . . . . . . . . . . . . . . . . . . . . Damage Inflicted 19150 | . 218 143 . 232 . 1078 1810 846 1661 272 399 1273 1124 1064 300 1073 . 1030 497 1698 901 1924 1286 321 Guns 4217 | . 218 19 . . . . 820 828 478 272 . 127 . . 42 . . . . . 530 883 . . Cannons 5096 | . . . . . . . . . 318 . 399 870 511 204 258 111 . 239 99 589 371 446 360 321 Explosions 6238 | . . 124 . 232 . 1078 719 . 864 . . . . . . . . 591 . 1109 . 595 926 . Melee 3549 | . . . . . . . 271 . . . . 276 613 850 . 962 . 200 377 . . . . . Ramming 50 | . . . . . . . . 18 1 . . . . 10 . . . . 21 . . . . . Kinetic 5370 | . 218 19 . . . . 402 828 478 272 399 127 . 91 . 111 . 239 99 589 371 446 360 321 Thermal 2566 | . . . . . . . 221 . 744 . . . . . 42 . . . . . 530 883 146 . Explosive 5666 | . . 124 . 232 . 1078 719 . 438 . . . . . . . . 591 . 1109 . 595 780 . Electromagnetic 1949 | . . . . . . . 197 . . . . 870 511 113 258 . . . . . . . . . Impact 271 | . . . . . . . 271 . . . . . . . . . . . . . . . . . Slashing . | . . . . . . . . . . . . . . . . . . . . . . . . . Piercing 3278 | . . . . . . . . . . . . 276 613 850 . 962 . 200 377 . . . . . Highest Corruption 7 | . . . . . . . . . . 2 2 . . 3 2 5 . . . 2 6 7 . . Average Corruption 3 | . . . . . . . . . . 1 2 . . 2 1 2 . . . 1 3 6 . . Corruption Purged 15 | . . . . . . . . . . . . . . 3 1 6 . . . . 5 . . . Corruption Blocked . | . . . . . . . . . . . . . . . . . . . . . . . . . Effects 87 | . . . . . . . . . . 2 7 . . 14 3 2 . . . 10 4 45 . . Message Errors 26 | . . . . . . . . . . 1 2 . . 2 1 . . . . 3 3 14 . . Matter Fused 21 | . . . . . . . . . . 1 3 . . 5 . . . . . 2 1 9 . . Heat Flow Errors 7 | . . . . . . . . . . . 1 . . 2 . 1 . . . 2 . 1 . . Energy Discharges 9 | . . . . . . . . . . . . . . 2 1 . . . . . . 6 . . Parts Rejected 1 | . . . . . . . . . . . . . . . . 1 . . . . . . . . Data Loss (minor) 11 | . . . . . . . . . . . . . . 2 1 . . . . . . 8 . . Data Loss (major) 3 | . . . . . . . . . . . . . . . . . . . . 1 . 2 . . Misfires 5 | . . . . . . . . . . . 1 . . 1 . . . . . . . 3 . . Alerts 3 | . . . . . . . . . . . . . . . . . . . . 1 . 2 . . Weapon Failures 1 | . . . . . . . . . . . . . . . . . . . . 1 . . . . Overload Shots 10 | . . . . . . . . . . . . . . . 2 . . . . . 1 7 . . Effects 1 | . . . . . . . . . . . . . . . . . . . . . . 1 . . Energy Bleed 1 | . . . . . . . . . . . . . . . . . . . . . . 1 . . Overflow Damage 865 | . . . . . . 33 31 . 48 . . 185 42 152 . 269 . 26 61 18 . . . . Projectiles 49 | . . . . . . . . . 15 . . 34 . . . . . . . . . . . . Explosions 141 | . . . . . . 33 31 . 33 . . . . . . . . 26 . 18 . . . . Melee 675 | . . . . . . . . . . . . 151 42 152 . 269 . . 61 . . . . . Knockbacks 25 | . . . . . . . . . . . 4 . . 1 . . . 6 . 3 4 2 3 2 Impact 1 | . . . . . . . . . . . . . . 1 . . . . . . . . . . Kinetic 22 | . . . . . . . . . . . 4 . . . . . . 4 . 3 4 2 3 2 Secondary 2 | . . . . . . . . . . . . . . . . . . 2 . . . . . . Self-Inflicted Damage 333 | . . . . 24 . 74 . . 167 . . . . . . . . 24 . 44 . . . . Shots 9 | . . . . 1 . 3 . . 3 . . . . . . . . 1 . 1 . . . . Rammed 5 | . . . . . . . . 2 1 . . . . 1 . . . . 1 . . . . . Targets Rammed 6 | . . . . . . . . 2 1 . . . . 1 . . . . 2 . . . . . Kicked . | . . . . . . . . . . . . . . . . . . . . . . . . . Crushed 1 | . . . . . . . . . . . . . . . . . . . 1 . . . . . Highest Temperature 387 | . 18 . . . . 1 72 18 56 . 225 387 311 144 166 102 . 327 157 226 142 190 . . Average Temperature 69 | . 10 . . . . 1 18 6 19 . 51 117 162 46 49 59 . 154 69 109 81 95 . . Received Heat Transfer 1821 | . 75 . . 9 . 74 223 107 328 . 92 91 66 131 16 . . 262 27 95 27 181 17 . Effects 3 | . . . . . . . . . . . . 2 . . . . . 1 . . . . . . Shutdowns 1 | . . . . . . . . . . . . 1 . . . . . . . . . . . . Energy Bleed 1 | . . . . . . . . . . . . 1 . . . . . . . . . . . . Interference 1 | . . . . . . . . . . . . . . . . . . 1 . . . . . . Siege Activations 24 | . . . . . . . . . . . . . . . 1 3 . 1 2 6 4 5 1 1 Total Turns 365 | . . . . . . . . . . . . . . . 23 12 . 48 18 107 38 82 17 20 Longest Duration 48 | . . . . . . . . . . . . . . . 23 5 . 48 10 39 16 27 17 20 Robots Corrupted 6 | . . . . . . . . . . . . 4 1 . 1 . . . . . . . . . Combat Hostiles 6 | . . . . . . . . . . . . 4 1 . 1 . . . . . . . . . Parts Fried 13 | . . . . . . . 1 . . . . 8 1 . 3 . . . . . . . . . Impact Corruptions . | . . . . . . . . . . . . . . . . . . . . . . . . . Robots Melted 1 | . . . . . . . . . . . . . . . . . . . . . . 1 . . Combat Hostiles 1 | . . . . . . . . . . . . . . . . . . . . . . 1 . . Parts Melted 8 | . . . . . . . 3 . . . . . . . . . . . . . 5 . . . Heat Transferred 2876 | . . . . . . . 703 . 600 . . . . . 74 . . . . . 494 905 100 . Parts Sabotaged 7 | . . . . . . . . . . . . . . . . . . . . 7 . . . . Parts Stolen . | . . . . . . . . . . . . . . . . . . . . . . . . . Parts Stripped . | . . . . . . . . . . . . . . . . . . . . . . . . . Power Chain Reactions . | . . . . . . . . . . . . . . . . . . . . . . . . . Missiles Intercepted . | . . . . . . . . . . . . . . . . . . . . . . . . . Alert | -11 -10 -10 -9 -9 -9 -8 -8 -8 -8 -7 -7 -6 -6 -6 -6 -6 -6 -6 -5 -5 -5 -5 -4 -4 ------- Run | Jun Mat Min Mat Min Exi Min Mat Sto Gar Fac Gar Fac Gar Ext Cet Arc Hub Gar Fac Gar Fac Gar Fac Gar Peak Influence 1337 | . 238 96 37 114 . 186 272 231 689 387 315 245 494 726 833 407 5 252 214 637 444 1337 981 711 Initial 700 | . . 14 37 14 . . 72 22 144 361 132 165 50 259 406 247 . 3 132 44 333 207 700 686 Average 286 | . 73 39 37 113 . 19 108 83 440 312 235 161 272 445 607 199 1 129 135 342 360 779 864 692 Maximum Alert Level 4 | . 1 . . . . . 1 1 2 1 1 1 2 3 3 2 . 1 1 2 2 4 3 3 Low Security (%) 47 | 100 89 100 100 100 . 100 97 84 3 26 40 86 44 . . 39 100 51 55 33 . . . . Level 1 26 | . 10 . . . . . 2 15 35 73 59 13 17 40 4 48 . 49 44 38 49 33 . . Level 2 20 | . . . . . . . . . 61 . . . 37 58 80 11 . . . 27 50 12 . 69 Level 3 3 | . . . . . . . . . . . . . . . 14 . . . . . . 26 100 30 Level 4 2 | . . . . . . . . . . . . . . . . . . . . . . 27 . . Level 5 . | . . . . . . . . . . . . . . . . . . . . . . . . . High Security . | . . . . . . . . . . . . . . . . . . . . . . . . . Max Security . | . . . . . . . . . . . . . . . . . . . . . . . . . Squads Dispatched 25 | . 1 1 . . . . 1 3 . 2 . 6 . 4 . . . . 1 . 4 . 2 . Investigation 6 | . 1 1 . . . . . . . . . 2 . . . . . . 1 . 1 . . . Extermination 4 | . . . . . . . . . . 2 . 1 . . . . . . . . 1 . . . Reinforcement 9 | . . . . . . . 1 . . . . 3 . 3 . . . . . . 1 . 1 . Assault 1 | . . . . . . . . . . . . . . 1 . . . . . . . . . . Garrison 5 | . . . . . . . . 3 . . . . . . . . . . . . 1 . 1 . Intercept . | . . . . . . . . . . . . . . . . . . . . . . . . . Searches Triggered . | . . . . . . . . . . . . . . . . . . . . . . . . . Construction Impeded 2 | . . . . . . . . . . . . . . 1 . . . . . . 1 . . . Haulers Reinforced 3 | . . . . . . . . . . . . 2 . . . . . . . . . . 1 . Active Scanning Responses . | . . . . . . . . . . . . . . . . . . . . . . . . . Cargo Convoy Interrupts . | . . . . . . . . . . . . . . . . . . . . . . . . . Stealth | -11 -10 -10 -9 -9 -9 -8 -8 -8 -8 -7 -7 -6 -6 -6 -6 -6 -6 -6 -5 -5 -5 -5 -4 -4 --------- Run | Jun Mat Min Mat Min Exi Min Mat Sto Gar Fac Gar Fac Gar Ext Cet Arc Hub Gar Fac Gar Fac Gar Fac Gar Distress Signals 16 | . 1 . . . . . 4 6 . . . . . 2 2 . . . . . . . 1 . Communications Jammed . | . . . . . . . . . . . . . . . . . . . . . . . . . Distress Signals . | . . . . . . . . . . . . . . . . . . . . . . . . . Times Spotted 316 | . 10 3 . 2 . 10 34 21 17 1 4 10 16 38 20 14 . 17 10 23 10 37 13 6 Peak Tracking Total 9 | . 3 3 . . . 4 6 7 6 1 3 3 4 6 8 1 . 9 4 6 4 7 7 6 Tactical Retreats 19 | . . . . . . . 2 2 1 . . 1 . 3 . . . 3 1 1 . 5 . . Traps | -11 -10 -10 -9 -9 -9 -8 -8 -8 -8 -7 -7 -6 -6 -6 -6 -6 -6 -6 -5 -5 -5 -5 -4 -4 ------- Run | Jun Mat Min Mat Min Exi Min Mat Sto Gar Fac Gar Fac Gar Ext Cet Arc Hub Gar Fac Gar Fac Gar Fac Gar Traps Triggered 19 | . . . . . . . . . 2 2 2 . 6 1 . . . 1 . . . 5 . . Indirectly . | . . . . . . . . . . . . . . . . . . . . . . . . . Trap Hack Attempts . | . . . . . . . . . . . . . . . . . . . . . . . . . Triggered . | . . . . . . . . . . . . . . . . . . . . . . . . . Disarmed . | . . . . . . . . . . . . . . . . . . . . . . . . . Reprogrammed . | . . . . . . . . . . . . . . . . . . . . . . . . . Reused . | . . . . . . . . . . . . . . . . . . . . . . . . . Traps Extracted . | . . . . . . . . . . . . . . . . . . . . . . . . . Installed . | . . . . . . . . . . . . . . . . . . . . . . . . . Triggered . | . . . . . . . . . . . . . . . . . . . . . . . . . Machines | -11 -10 -10 -9 -9 -9 -8 -8 -8 -8 -7 -7 -6 -6 -6 -6 -6 -6 -6 -5 -5 -5 -5 -4 -4 ---------- Run | Jun Mat Min Mat Min Exi Min Mat Sto Gar Fac Gar Fac Gar Ext Cet Arc Hub Gar Fac Gar Fac Gar Fac Gar Machines Disabled 23 | . . . . . . . . . . . 2 . 5 2 3 1 . . . 4 . 3 3 . Max in Single Turn 2 | . . . . . . . . . . . 1 . 1 . 1 1 . . . 1 . 1 2 . Garrison Relay 9 | . . . . . . . . . . . 1 . 2 . . . . . . 3 . 3 . . Machines Repaired . | . . . . . . . . . . . . . . . . . . . . . . . . . Machines Sabotaged . | . . . . . . . . . . . . . . . . . . . . . . . . . Overloaded Fab Kills . | . . . . . . . . . . . . . . . . . . . . . . . . . Hacking | -11 -10 -10 -9 -9 -9 -8 -8 -8 -8 -7 -7 -6 -6 -6 -6 -6 -6 -6 -5 -5 -5 -5 -4 -4 --------- Run | Jun Mat Min Mat Min Exi Min Mat Sto Gar Fac Gar Fac Gar Ext Cet Arc Hub Gar Fac Gar Fac Gar Fac Gar Machines Accessed 53 | . 4 1 1 . 2 . 9 3 1 2 2 3 1 9 1 . 2 2 2 1 3 3 1 . Terminals 35 | . 4 . . . . . 6 1 1 1 2 1 1 9 1 . 1 2 1 1 . 3 . . Fabricators 2 | . . . . . . . . . . . . 1 . . . . . . . . 1 . . . Repair Stations 3 | . . . 1 . . . 1 1 . . . . . . . . . . . . . . . . Recycling Units . | . . . . . . . . . . . . . . . . . . . . . . . . . Scanalyzers 3 | . . . . . . . 2 . . . . . . . . . . . . . 1 . . . Garrison Access 7 | . . . . . . . . 1 . 1 . 1 . . . . 1 . 1 . 1 . 1 . Total Hacks 141 | . 13 1 3 . 2 . 30 8 2 10 4 8 3 18 3 . 4 4 11 3 6 6 2 . Successful 67 | . 5 1 2 . 2 . 16 5 . 5 2 5 1 9 . . 1 2 4 1 4 1 1 . Failed 72 | . 8 . 1 . . . 13 3 2 4 2 3 2 9 3 . 3 2 7 2 2 5 1 . Catastrophic 10 | . 1 . . . . . 3 . 1 . . . . . . . 1 . . 1 . 2 1 . Database Lockouts 2 | . . . . . . . 1 . . 1 . . . . . . . . . . . . . . Manual 79 | . 7 . . . 1 . 19 4 2 8 2 4 . 7 . . 3 2 10 3 2 4 1 . Terminals 101 | . 13 . . . . . 20 4 2 7 4 4 3 18 3 . 1 4 9 3 . 6 . . Fabricators 3 | . . . . . . . . . . . . 2 . . . . . . . . 1 . . . Repair Stations 7 | . . . 3 . . . 2 2 . . . . . . . . . . . . . . . . Recycling Units . | . . . . . . . . . . . . . . . . . . . . . . . . . Scanalyzers 10 | . . . . . . . 8 . . . . . . . . . . . . . 2 . . . Garrison Access 17 | . . . . . . . . 2 . 3 . 2 . . . . 3 . 2 . 3 . 2 . Terminal Hacks 31 | . 4 1 . . 2 . 6 1 . 2 2 . 1 8 . . . 1 1 1 . 1 . . Record 1 | . . . . . 1 . . . . . . . . . . . . . . . . . . . Part Schematic 2 | . . . . . . . 1 1 . . . . . . . . . . . . . . . . Robot Schematic 4 | . . . . . . . 1 . . 2 . . . . . . . . 1 . . . . . Prototype ID Bank 1 | . 1 . . . . . . . . . . . . . . . . . . . . . . . Open Door 9 | . . 1 . . . . . . . . . . 1 6 . . . . . . . 1 . . Branch Access Points 3 | . 2 . . . . . 1 . . . . . . . . . . . . . . . . . Scanalyzer Index 1 | . . . . . . . 1 . . . . . . . . . . . . . . . . . Garrison Index 1 | . . . . . . . 1 . . . . . . . . . . . . . . . . . Unreport Threat 3 | . . . . . . . 1 . . . . . . 2 . . . . . . . . . . Zone Layout 1 | . 1 . . . . . . . . . . . . . . . . . . . . . . . Garrison Registry 3 | . . . . . . . . . . . 1 . . . . . . 1 . 1 . . . . Security Stations 1 | . . . . . . . . . . . 1 . . . . . . . . . . . . . EX-Prototype ID Bank 1 | . . . . . 1 . . . . . . . . . . . . . . . . . . . Fabricator Hacks 2 | . . . . . . . . . . . . 2 . . . . . . . . . . . . Load Schematic 1 | . . . . . . . . . . . . 1 . . . . . . . . . . . . Build 1 | . . . . . . . . . . . . 1 . . . . . . . . . . . . Repair Station Hacks 5 | . . . 2 . . . 1 2 . . . . . . . . . . . . . . . . Scan Component 3 | . . . 1 . . . 1 1 . . . . . . . . . . . . . . . . Repair 2 | . . . 1 . . . . 1 . . . . . . . . . . . . . . . . Recycling Unit Hacks . | . . . . . . . . . . . . . . . . . . . . . . . . . Scanalyzer 8 | . . . . . . . 6 . . . . . . . . . . . . . 2 . . . Insert Component 4 | . . . . . . . 3 . . . . . . . . . . . . . 1 . . . Analyze 4 | . . . . . . . 3 . . . . . . . . . . . . . 1 . . . Garrison Access Hacks 7 | . . . . . . . . 1 . 1 . 1 . . . . 1 . 1 . 1 . 1 . Unlock Access 7 | . . . . . . . . 1 . 1 . 1 . . . . 1 . 1 . 1 . 1 . Unauthorized Hacks 14 | . 1 . . . . . 3 1 . 2 . 2 . 1 . . . 1 2 . 1 . . . Terminals 10 | . 1 . . . . . 3 1 . 1 . 1 . 1 . . . 1 1 . . . . . Botnet 8 | . . . . . . . 2 1 . 1 . 1 . 1 . . . 1 1 . . . . . Operators 2 | . 1 . . . . . 1 . . . . . . . . . . . . . . . . . Fabricators . | . . . . . . . . . . . . . . . . . . . . . . . . . Repair Stations . | . . . . . . . . . . . . . . . . . . . . . . . . . Recycling Units . | . . . . . . . . . . . . . . . . . . . . . . . . . Scanalyzers . | . . . . . . . . . . . . . . . . . . . . . . . . . Garrison Access 4 | . . . . . . . . . . 1 . 1 . . . . . . 1 . 1 . . . Reprogram 4 | . . . . . . . . . . 1 . 1 . . . . . . 1 . 1 . . . Data Cores Recovered . | . . . . . . . . . . . . . . . . . . . . . . . . . Used . | . . . . . . . . . . . . . . . . . . . . . . . . . Hacking Detections 45 | . 4 . 1 . . . 8 3 1 2 2 3 1 5 1 . 2 2 2 1 3 3 1 . Full Trace Events 8 | . 1 . . . . . . . 1 . . 1 . . . . . . 1 1 1 2 . . Feedback Events 2 | . . . . . . . . . . . . . . . . . . . . . 1 1 . . Corruption 1 | . . . . . . . . . . . . . . . . . . . . . . 1 . . Hackware Fried 1 | . . . . . . . . . . . . . . . . . . . . . 1 . . . Feedback Blocked . | . . . . . . . . . . . . . . . . . . . . . . . . . Robot Schematics Acquired 4 | . . . . . . . 1 . . 2 . . . . . . . . 1 . . . . . Robots Built 1 | . . . . . . . . . . . . 1 . . . . . . . . . . . . Authchips . | . . . . . . . . . . . . . . . . . . . . . . . . . Time 38 | . . . . . . . . . . . . 38 . . . . . . . . . . . . Total Robot Build Rating 3 | . . . . . . . . . . . . 3 . . . . . . . . . . . . Part Schematics Acquired 6 | . . . . . . . 4 1 . . . . . . . . . . . . 1 . . . Parts Built . | . . . . . . . . . . . . . . . . . . . . . . . . . Authchips . | . . . . . . . . . . . . . . . . . . . . . . . . . Time . | . . . . . . . . . . . . . . . . . . . . . . . . . Total Part Build Rating . | . . . . . . . . . . . . . . . . . . . . . . . . . Parts Repaired 2 | . . . 1 . . . . 1 . . . . . . . . . . . . . . . . Time 88 | . . . 50 . . . . 38 . . . . . . . . . . . . . . . . Parts Recycled . | . . . . . . . . . . . . . . . . . . . . . . . . . Recycled Matter . | . . . . . . . . . . . . . . . . . . . . . . . . . Retrieved Matter . | . . . . . . . . . . . . . . . . . . . . . . . . . Retrieved Components . | . . . . . . . . . . . . . . . . . . . . . . . . . Parts Scanalyzed 4 | . . . . . . . 3 . . . . . . . . . . . . . 1 . . . Part Schematics Acquired 4 | . . . . . . . 3 . . . . . . . . . . . . . 1 . . . Parts Damaged . | . . . . . . . . . . . . . . . . . . . . . . . . . Bothacking | -11 -10 -10 -9 -9 -9 -8 -8 -8 -8 -7 -7 -6 -6 -6 -6 -6 -6 -6 -5 -5 -5 -5 -4 -4 ------------ Run | Jun Mat Min Mat Min Exi Min Mat Sto Gar Fac Gar Fac Gar Ext Cet Arc Hub Gar Fac Gar Fac Gar Fac Gar Used RIF Installer 6 | . . . . . . . . . 1 . 1 . 1 . . . . 1 . 1 . 1 . . Command Fork 1 | . . . . . . . . . . . 1 . . . . . . . . . . . . . Threat Obfuscator 1 | . . . . . . . . . . . . . . . . . . 1 . . . . . . Signal Jammer 1 | . . . . . . . . . . . . . . . . . . . . . . 1 . . Watcher Feeds 1 | . . . . . . . . . . . . . . . . . . . . 1 . . . . Structural Interface 1 | . . . . . . . . . . . . . 1 . . . . . . . . . . . Robots Hacked 8 | . . . . . . . . . . . . . . . . . . . . 2 1 5 . . Non-combat . | . . . . . . . . . . . . . . . . . . . . . . . . . Combat 8 | . . . . . . . . . . . . . . . . . . . . 2 1 5 . . Robot Hacks Applied 9 | . . . . . . . . . . . . . . . . . . . . 2 2 5 . . scatter_targeting 1 | . . . . . . . . . . . . . . . . . . . . . . 1 . . disrupt_area 1 | . . . . . . . . . . . . . . . . . . . . . . 1 . . disable_weapons 1 | . . . . . . . . . . . . . . . . . . . . . . 1 . . overwrite_iff 2 | . . . . . . . . . . . . . . . . . . . . . . 2 . . formatsys_high 4 | . . . . . . . . . . . . . . . . . . . . 2 2 . . . Relay Couplers Released 40 | . . . . . . . . . . . 3 . 8 . . . . . . 14 . 15 . . Machine Destruction 40 | . . . . . . . . . . . 3 . 8 . . . . . . 14 . 15 . . Attached 3 | . . . . . . . . . . . . . . . . . . . . 1 1 1 . . Fabnet Peak Effective % . | . . . . . . . . . . . . . . . . . . . . . . . . . Robots Rewired 37 | . . . . . . . . . . . . 1 6 22 . . . . . . . 8 . . Allies Hacked . | . . . . . . . . . . . . . . . . . . . . . . . . . Hacks Repelled . | . . . . . . . . . . . . . . . . . . . . . . . . . Allies | -11 -10 -10 -9 -9 -9 -8 -8 -8 -8 -7 -7 -6 -6 -6 -6 -6 -6 -6 -5 -5 -5 -5 -4 -4 -------- Run | Jun Mat Min Mat Min Exi Min Mat Sto Gar Fac Gar Fac Gar Ext Cet Arc Hub Gar Fac Gar Fac Gar Fac Gar Total Allies 55 | . . . . . . . . . . . . 5 6 29 . . . . . 2 1 12 . . Largest Group 25 | . . . . . . . . . . . . 4 7 25 16 2 . . . 2 2 6 2 . Highest-Rated Group 961 | . . . . . . . . . . . . 110 283 961 667 190 . . . 58 58 349 82 . Highest-Rated Ally 159 | . . . . . . . . . . . . 32 99 159 159 151 . . . 29 29 95 41 . Total Orders 7 | . . . . . . . . . . . . . 1 3 2 . . . . . . 1 . . STAY 2 | . . . . . . . . . . . . . . 1 1 . . . . . . . . . FOLLOW 3 | . . . . . . . . . . . . . . 2 1 . . . . . . . . . AID 2 | . . . . . . . . . . . . . 1 . . . . . . . . 1 . . Ally Attacks 559 | . . . . . . . . . . . . 11 86 174 110 1 . . . . 24 138 15 . Total Damage 13466 | . . . . . . . . . . . . 162 1820 4077 2669 27 . . . . 380 3878 453 . Kills 102 | . . . . . . . . . . . . 1 10 34 17 . . . . . 1 35 4 . Allies Corrupted 1 | . . . . . . . . . . . . . 1 . . . . . . . . . . . Allies Melted 3 | . . . . . . . . . . . . . . 2 . . . . . . . 1 . . Intel | -11 -10 -10 -9 -9 -9 -8 -8 -8 -8 -7 -7 -6 -6 -6 -6 -6 -6 -6 -5 -5 -5 -5 -4 -4 ------- Run | Jun Mat Min Mat Min Exi Min Mat Sto Gar Fac Gar Fac Gar Ext Cet Arc Hub Gar Fac Gar Fac Gar Fac Gar Robot Analysis Total . | . . . . . . . . . . . . . . . . . . . . . . . . . Derelict Logs Recovered . | . . . . . . . . . . . . . . . . . . . . . . . . . Drone Launches . | . . . . . . . . . . . . . . . . . . . . . . . . . Drone Recoveries . | . . . . . . . . . . . . . . . . . . . . . . . . . Exploration | -11 -10 -10 -9 -9 -9 -8 -8 -8 -8 -7 -7 -6 -6 -6 -6 -6 -6 -6 -5 -5 -5 -5 -4 -4 ------------- Run | Jun Mat Min Mat Min Exi Min Mat Sto Gar Fac Gar Fac Gar Ext Cet Arc Hub Gar Fac Gar Fac Gar Fac Gar Turns Passed 19135 | 79 565 331 226 176 790 1460 2148 619 1598 546 675 864 1099 1750 475 1318 268 300 591 863 537 1653 136 68 Spaces Moved 6746 | 46 283 134 68 72 328 540 673 130 443 213 232 298 350 573 177 234 151 146 173 388 262 760 50 22 Core 2 | 2 . . . . . . . . . . . . . . . . . . . . . . . . Treads 6302 | 44 283 134 68 72 328 540 673 130 443 213 232 298 350 573 177 234 151 146 173 388 262 389 1 . Legs . | . . . . . . . . . . . . . . . . . . . . . . . . . Wheels 442 | . . . . . . . . . . . . . . . . . . . . . . 371 49 22 Hover . | . . . . . . . . . . . . . . . . . . . . . . . . . Flight . | . . . . . . . . . . . . . . . . . . . . . . . . . Fastest Speed 50 | 50 160 240 240 240 240 240 240 325 312 235 243 243 241 170 160 160 160 160 160 160 160 160 180 180 Average Speed 223 | 155 176 240 240 240 240 240 281 325 316 237 243 243 248 239 223 160 160 160 160 160 160 173 181 180 Slowest Speed 325 | 160 240 240 240 240 240 240 325 325 325 243 243 243 250 250 250 160 160 160 160 160 160 240 240 180 Overloaded Moves . | . . . . . . . . . . . . . . . . . . . . . . . . . Propulsion Burnouts . | . . . . . . . . . . . . . . . . . . . . . . . . . Robots Hopped . | . . . . . . . . . . . . . . . . . . . . . . . . . Cave-ins Triggered 1 | . . . . . . . . . . . . . . 1 . . . . . . . . . . Exploration Rate (%) 37 | 4 59 42 10 30 70 80 46 27 44 7 38 9 49 62 69 79 17 38 5 48 11 86 3 6 Regions Visited 24 Branch Regions 9 Pre-discovered Areas 2 | . . . . . 1 . . 1 . . . . . . . . . . . . . . . . Known Exits Taken 9 | . 1 . . . . . 1 1 . 1 . 1 . . . . 1 . 1 . 1 . 1 . Unknown Exits Taken 9 | 1 . 1 1 1 1 1 . . . . . . . 1 1 1 . . . . . . . . Scrap Searched 1 | . . . . . . 1 . . . . . . . . . . . . . . . . . . Spaces Dug 98 | . . 13 . . . 11 . . 13 . . 2 . 7 . . 5 1 4 3 . 39 . . Terrain Destroyed 404 | . . 13 . 20 . 80 24 . 71 . . 3 . 25 . . 5 7 4 35 6 72 38 1 Melee 18 | . . . . . . . . . . . . 2 . 4 . . 5 . 4 3 . . . . Projectile 41 | . . . . . . . . . 1 . . 1 . 21 . . . . . 3 6 6 2 1 AOE 345 | . . 13 . 20 . 80 24 . 70 . . . . . . . . 7 . 29 . 66 36 . Terrain Rammed . | . . . . . . . . . . . . . . . . . . . . . . . . . Walls Destroyed . | . . . . . . . . . . . . . . . . . . . . . . . . . Machines Disabled . | . . . . . . . . . . . . . . . . . . . . . . . . . Actions | -11 -10 -10 -9 -9 -9 -8 -8 -8 -8 -7 -7 -6 -6 -6 -6 -6 -6 -6 -5 -5 -5 -5 -4 -4 --------- Run | Jun Mat Min Mat Min Exi Min Mat Sto Gar Fac Gar Fac Gar Ext Cet Arc Hub Gar Fac Gar Fac Gar Fac Gar Total 10004 | 51 314 141 131 74 332 695 834 263 570 238 323 390 533 882 248 1141 167 178 446 568 345 1037 71 32 Wait 1999 | . 2 . 60 . . 142 48 85 48 2 27 34 78 80 31 857 10 5 241 90 28 125 5 1 Move 6723 | 45 282 133 67 71 327 539 672 130 442 212 231 297 349 571 176 233 150 145 172 387 262 759 49 22 Hop . | . . . . . . . . . . . . . . . . . . . . . . . . . Pick Up 123 | . 8 5 1 . 5 1 16 2 4 5 11 8 6 2 5 9 . . 2 13 3 17 . . Fast Attach 46 | 6 1 . 1 . . 1 5 3 1 3 . 5 3 1 5 2 . . . 4 2 3 . . Attach 47 | . . . 1 . . . 5 1 13 1 . 4 1 2 . 6 . . 2 4 1 4 2 . Detach 11 | . . . . . . . . . 6 . 1 1 . . 2 . . . . . 1 . . . Swap 78 | . 1 1 1 1 . 1 13 1 6 2 5 4 5 4 4 2 2 4 4 4 8 5 . . Drop 111 | . 1 . . . . 1 17 5 1 2 14 9 12 2 12 9 . . 1 8 4 13 . . Fire 497 | . 19 2 . 2 . 10 47 34 40 9 30 21 26 26 13 8 . 17 6 53 36 74 15 9 Melee 101 | . . . . . . . 11 . 4 . . 6 12 20 . 15 5 7 16 5 . . . . Ram . | . . . . . . . . . . . . . . . . . . . . . . . . . Kick . | . . . . . . . . . . . . . . . . . . . . . . . . . Crush 6 | . . . . . . . . 2 1 . . . . 1 . . . . 2 . . . . . Escape Stasis 37 | . . . . . . . . . 4 2 4 . 6 5 . . . . . . . 16 . . Rewire 225 | . . . . . . . . . . . . 1 35 168 . . . . . . . 21 . . Trap . | . . . . . . . . . . . . . . . . . . . . . . . . . Miscellaneous . | . . . . . . . . . . . . . . . . . . . . . . . . . Route ------- -11/Junkyard -10/Materials -10/Mines -9/Materials -9/Mines -9/Exiles -8/Mines -8/Materials (discovered 2 exits: *Fac / *Sto) -8/Storage -8/Garrison (discovered 2 exits: *Fac x2) -7/Factory -7/Garrison (discovered 3 exits: *Fac x3) -6/Factory -6/Garrison -6/Extension (discovered 2 exits: *Fac / *Cet) -6/Cetus (discovered 2 exits: *Fac / [*Arc]) -6/Archives (discovered 3 exits: *Fac / *Hub x2) -6/Hub_04(d) (discovered 3 exits: *Fac x2 / Gar) -6/Garrison (discovered 3 exits: *Fac x3) -5/Factory -5/Garrison (discovered 3 exits: *Fac x3) -5/Factory -5/Garrison (discovered 3 exits: *Fac x3) -4/Factory -4/Garrison History --------- Turn | Location | Event 45 | -11/Junkyard | Discovered new exit (range 16) 80 | -11/Junkyard | Entered Materials 143 | -10/Materials | Identified exit to Mines 309 | -10/Materials | Build established: Mutant 645 | -10/Materials | Entered Mines 814 | -10/Mines | Met a Derelict shopkeep closing up shop 897 | -10/Mines | Discovered new exit (range 10) 976 | -10/Mines | Entered Materials 976 | -9/Materials | Evolved 2 slots: Utility x2 1041 | -9/Materials | Repaired Lgt. Angular Momentum Engine 1144 | -9/Materials | Discovered new exit (range 16) 1180 | -9/Materials | Met 8R-AWN 1202 | -9/Materials | Entered Mines 1369 | -9/Mines | Deemed a non-threat by the Exiles lab entrance 1369 | -9/Mines | Discovered new exit (range 5) 1378 | -9/Mines | Entered Exiles 1434 | -9/Exiles | Welcomed by 8R-AWN 1477 | -9/Exiles | Met EX-HEX 1605 | -9/Exiles | Met EX-DEC 1774 | -9/Exiles | Learned location of Zion (-7) 1827 | -9/Exiles | Met EX-BIN 1856 | -9/Exiles | Aligned with FarCom system 1858 | -9/Exiles | Given EX-Vault access code 1913 | -9/Exiles | Opened EX-Vault 1930 | -9/Exiles | Found 0b10 Alert Chip 1936 | -9/Exiles | Found YOLO Cannon 1939 | -9/Exiles | Found Firepult 1991 | -9/Exiles | Warned to stay clear of 0b10 Research branches 2139 | -9/Exiles | Discovered new exit (range 14) 2168 | -9/Exiles | Stole three prototypes: 0b10 Alert Chip, YOLO Cannon, Firepult 2168 | -9/Exiles | Entered Mines 3609 | -8/Mines | Discovered new exit (range 6) 3628 | -8/Mines | Entered Materials 3628 | -8/Materials | Evolved 2 slots: Utility x2 4274 | -8/Materials | Build established: Scavenger-Mutant 4598 | -8/Materials | Identified exit to Storage 4875 | -8/Materials | Build established: Mutant 5110 | -8/Materials | Destroyed 8 combat bots 5339 | -8/Materials | Central database locked down 5659 | -8/Materials | Discovered new exit (range 16) 5776 | -8/Materials | Entered Storage 5965 | -8/Storage | Repaired Hardlight Generator 6172 | -8/Storage | Garrison activated, responded to threat 6307 | -8/Storage | Learned location of Armory (-4) 6395 | -8/Storage | Identified exit to Garrison 6395 | -8/Storage | Entered Garrison 6424 | -8/Garrison | Triggered checkpoint 6488 | -8/Garrison | Lost 3 parts (1p1u1w) 6868 | -8/Garrison | Triggered checkpoint 7082 | -8/Garrison | Discovered new exit (range 10) 7234 | -8/Garrison | Triggered checkpoint 7523 | -8/Garrison | Installed Relay Interface Framework 7634 | -8/Garrison | Discovered new exit (range 12) 7848 | -8/Garrison | Build established: Hacker-Mutant 7993 | -8/Garrison | Entered Factory 7993 | -7/Factory | Evolved 2 slots: Propulsion x2 7995 | -7/Factory | FarCom data flow suspended 8151 | -7/Factory | Central database locked down 8500 | -7/Factory | Identified exit to Garrison 8539 | -7/Factory | Entered Garrison 8593 | -7/Garrison | Expanded RIF knowledge: Command Fork 8654 | -7/Garrison | Discovered new exit (range 51) 8654 | -7/Garrison | Discovered new exit (range 76) 8654 | -7/Garrison | Discovered new exit (range 42) 8676 | -7/Garrison | Learned Factory security intel 8798 | -7/Garrison | Triggered checkpoint 8953 | -7/Garrison | Garrison Relay disabled 9214 | -7/Garrison | Entered Factory 9214 | -6/Factory | Evolved 2 slots: Power x1, Utility x1 9916 | -6/Factory | Identified exit to Garrison 10037 | -6/Factory | Fabricated M-28 Smith? 10078 | -6/Factory | Entered Garrison 10078 | -6/Garrison | Accompanied by 4 allies 10208 | -6/Garrison | Spotted B-90 Cyclops 10241 | -6/Garrison | Destroyed B-90 Cyclops 10318 | -6/Garrison | Rewired B-75 Beast 10584 | -6/Garrison | Garrison Relay disabled 10674 | -6/Garrison | Triggered checkpoint 10738 | -6/Garrison | Triggered checkpoint 10878 | -6/Garrison | Discovered new exit (range 12) 10904 | -6/Garrison | Expanded RIF knowledge: Structural Interface 10940 | -6/Garrison | Triggered checkpoint 10986 | -6/Garrison | Garrison Relay disabled 11031 | -6/Garrison | Rewired Striker 11038 | -6/Garrison | Rewired Striker 11177 | -6/Garrison | Entered Extension 11177 | -6/Extension | Accompanied by 3 allies 11256 | -6/Extension | Rescued A7 11261 | -6/Extension | Allies destroyed Striker 11586 | -6/Extension | Build established: Commander-Mutant 12019 | -6/Extension | Crushed by falling debris 12322 | -6/Extension | Rescued a captive Derelict 12383 | -6/Extension | Rescued a captive Derelict 12384 | -6/Extension | Rescued a captive Derelict 12582 | -6/Extension | Rescued a captive Derelict 12787 | -6/Extension | Rescued a captive Derelict 12826 | -6/Extension | Rescued a captive Derelict 12886 | -6/Extension | Discovered new exit (range 10) 12888 | -6/Extension | Discovered new exit (range 6) 12927 | -6/Extension | First assault squad dispatched 12927 | -6/Extension | Entered Cetus 12927 | -6/Cetus | Accompanied by 16 allies (A7) 12932 | -6/Cetus | Acquired a Cetus Manufacturing Module code from A7 12957 | -6/Cetus | Spotted Cetus Guard 12957 | -6/Cetus | Spotted Cetus Guard 12960 | -6/Cetus | Spotted Cetus Guard 12960 | -6/Cetus | Spotted Cetus Guard 12967 | -6/Cetus | Allies destroyed Cetus Guard 12976 | -6/Cetus | Allies destroyed Cetus Guard 12977 | -6/Cetus | Allies destroyed Cetus Guard 12984 | -6/Cetus | Allies destroyed Cetus Guard 13057 | -6/Cetus | Cetus Manufacturing Module disabled 13134 | -6/Cetus | Escorted A7 to Cetus Mainframe 13202 | -6/Cetus | Discovered new exit (range 16) 13251 | -6/Cetus | Spotted Cetus Guard 13251 | -6/Cetus | Spotted Cetus Guard 13258 | -6/Cetus | Allies destroyed Cetus Guard 13259 | -6/Cetus | Spotted Cetus Guard 13266 | -6/Cetus | Spotted Cetus Guard 13272 | -6/Cetus | Allies destroyed Cetus Guard 13275 | -6/Cetus | Destroyed Cetus Guard 13278 | -6/Cetus | Allies destroyed Cetus Guard 13300 | -6/Cetus | Discovered new exit (range 16) 13336 | -6/Cetus | Met Revision 17 13355 | -6/Cetus | Build established: Scavenger-Mutant 13402 | -6/Cetus | Entered Archives 13402 | -6/Archives | Accompanied by 2 allies (A7) 13407 | -6/Archives | Received a hacking code to weaken MAIN.C 13512 | -6/Archives | Discovered new exit (range 16) 13534 | -6/Archives | Discovered new exit (range 16) 13555 | -6/Archives | Discovered new exit (range 14) 14720 | -6/Archives | Entered Hub_04(d) 14823 | -6/Hub_04(d) | Identified exit to Garrison 14836 | -6/Hub_04(d) | Discovered new exit (range 9) 14915 | -6/Hub_04(d) | Discovered new exit (range 8) 14988 | -6/Hub_04(d) | Entered Garrison 15009 | -6/Garrison | Expanded RIF knowledge: Threat Obfuscation 15098 | -6/Garrison | Triggered checkpoint 15113 | -6/Garrison | Triggered checkpoint 15160 | -6/Garrison | Destroyed 9 combat bots 15246 | -6/Garrison | Discovered new exit (range 5) 15266 | -6/Garrison | Discovered new exit (range 64) 15266 | -6/Garrison | Discovered new exit (range 66) 15266 | -6/Garrison | Discovered new exit (range 12) 15288 | -6/Garrison | Entered Factory 15288 | -5/Factory | Evolved 2 slots: Propulsion x2 15468 | -5/Factory | Identified exit to Garrison 15645 | -5/Factory | Build established: Hacker-Mutant 15879 | -5/Factory | Entered Garrison 15892 | -5/Garrison | Discovered new exit (range 39) 15892 | -5/Garrison | Discovered new exit (range 75) 15892 | -5/Garrison | Discovered new exit (range 77) 15928 | -5/Garrison | Triggered checkpoint 15943 | -5/Garrison | Garrison Relay disabled 16107 | -5/Garrison | Triggered checkpoint 16272 | -5/Garrison | Triggered checkpoint 16280 | -5/Garrison | Garrison Relay disabled 16295 | -5/Garrison | Build established: Scavenger-Mutant 16475 | -5/Garrison | Triggered checkpoint 16501 | -5/Garrison | Triggered checkpoint 16533 | -5/Garrison | Destroyed 9 combat bots 16620 | -5/Garrison | Garrison Relay disabled 16632 | -5/Garrison | Triggered checkpoint 16661 | -5/Garrison | Build established: Bothacker-Mutant 16702 | -5/Garrison | Expanded RIF knowledge: Watcher Feeds 16742 | -5/Garrison | Entered Factory 16742 | -5/Factory | Accompanied by 2 allies 17003 | -5/Factory | Build established: Botlord-Mutant 17235 | -5/Factory | P-70 Sage assimilated allied Soldier 6b 17254 | -5/Factory | Garrison activated, responded to threat 17279 | -5/Factory | Identified exit to Garrison 17279 | -5/Factory | Imp. Hacking Suite fried by hacking feedback 17279 | -5/Factory | Entered Garrison 17279 | -5/Garrison | Accompanied by 2 allies 17308 | -5/Garrison | Spotted B-75 Beast 17360 | -5/Garrison | Triggered checkpoint 17392 | -5/Garrison | Destroyed B-75 Beast 17536 | -5/Garrison | Found Antimissile System 17547 | -5/Garrison | Expanded RIF knowledge: Signal Jamming 17631 | -5/Garrison | Found embedded Infiltrators 17745 | -5/Garrison | Triggered checkpoint 17797 | -5/Garrison | Discovered new exit (range 7) 17814 | -5/Garrison | Triggered checkpoint 17905 | -5/Garrison | Build established: Bothacker-Mutant 17946 | -5/Garrison | Garrison Relay disabled 18018 | -5/Garrison | Triggered checkpoint 18024 | -5/Garrison | Triggered checkpoint 18138 | -5/Garrison | Triggered checkpoint 18149 | -5/Garrison | Discovered new exit (range 14) 18249 | -5/Garrison | Build established: Scavenger-Mutant 18277 | -5/Garrison | Garrison Relay disabled 18746 | -5/Garrison | Discovered new exit (range 15) 18843 | -5/Garrison | Garrison Relay disabled 18932 | -5/Garrison | Entered Factory 18932 | -4/Factory | Accompanied by 2 allies 18932 | -4/Factory | Evolved 2 slots: Utility x2 18992 | -4/Factory | Garrison activated, responded to threat 19040 | -4/Factory | Destroyed 8 combat bots 19063 | -4/Factory | Identified exit to Garrison 19068 | -4/Factory | Entered Garrison 19104 | -4/Garrison | Triggered checkpoint 19136 | -4/Garrison | Self-destructed Last Messages --------------- 19118_ H-77 Assassin Imp. Phase Shifter blasted off. 19118_ HV Slug penetrates H-77 Assassin. 19118_ H-77 Assassin suffers critical hit (Destroy). 19118_ Destroyed Coil Gun. 19118_ Centrium Medium Armor Plating severed. 19123_ Penetrated by Slug. 19124_ HV Slug penetrates H-77 Assassin. 19124_ H-77 Assassin suffers critical hit (Destroy). 19124_ Destroyed Myomer Leg. 19124_ HV Slug penetrates Reinforced Barrier. 19125_ Imp. Treads destroyed. 19127_ ALERT: Dispatching investigation squad to Factory. 19127_ H-77 Assassin suffers critical hit (Destroy). 19127_ Destroyed Imp. Targeting Computer. 19129_ Penetrated by Slug. 19130_ HV Slug penetrates H-77 Assassin. 19132_ Slug penetrates Wall. 19132_ Penetrated by Slug. 19133_ Arm. Wheel severed. 19136_ Slug penetrates Wall. Map ----- +----------------------------------------------------+ | ?????????????????????????????????????????????????? | | ?????????????????????????????????????????????????? | | ?????????????????????????????????????????????????? | | ?????????????????????????????????????????????????? | | ?????????????????????????????????????????????????? | | ?????????????????????????????????????????????????? | | ?????????????????????????????????????????????????? | | ?????????????????????????????????????????????????? | | ?????????????????????????????????????????????????? | | ?????????????????????????????????????????????????? | | ?????????????????????????????????????????????????? | | ?????????????????????????????????????????????????? | | ?????????????????????????????????????????????????? | | ?????????????????????????????????????????????????? | | ?????????????????????????????????????????????????? | | ?????????????????????????????????????????????????? | | ?????????????????????????????? ??????????????????? | | ?????????????????????????????? ??????????????????? | | ?????????????????????????????? ??????????????????? | | ?????????????????????????????? ??????????????????? | | ?????????????????????????????? ??????????????????? | | ?????????????????????####????? ??????????????????? | | ?????????????????????# CC????? ??????????????????? | | ???????????????????### h/##### #?????????????????? | | ???????????????????? cch!%? #?????????????????? | | ???????????????????????#c@#??# #?????????????????? | | ??????????????????????#=#%#??# #?????????????????? | | ????????????????????????#!#??# #???#####?????????? | | ????????????????????????# #??# #???# #?????????? | | ????????????????????????# #### ##### #?????????? | | ????????????????????????# + #?????????? | | ????????????????????????#### #?????????? | | ???????????????????????????# ##########?????????? | | ???????????????????????????# #??????????????????? | | ???????????????????????????# #??????????????????? | | ???????????????????????????# #??????????????????? | | ???????????????????????????# #??????????????????? | | ???????????????????????????+ #??????????????????? | | ???????????????????????????# +??????????????????? | | ???????????????????????????# +??????????????????? | | ???????????????????????????# #??????????????????? | | ???????????????????????????# #??????????????????? | | ???????????????????????????# #??????????????????? | | ???????????????????????????? #??????????????????? | | ???????????????????????????? ???????????????????? | | ????????????????????????????##???????????????????? | | ?????????????????????????????????????????????????? | | ?????????????????????????????????????????????????? | | ?????????????????????????????????????????????????? | | ?????????????????????????????????????????????????? | +----------------------------------------------------+ Best States ------------- Heat Dissipation 94 Coolant Potential 80 Energy Generation 45 Energy Capacity 600 Matter Stores 300 Matter Capacity 300 Sight Range 16 Terrain Scan Range 20 Terrain Scan Density 110 Cloak Strength 3 Armor Coverage 900 Resistance: KI 25 Resistance: EM 20 Utility Shielding 66 Evasion (%) 40 Targeting Accuracy 8 Launcher Accuracy 40 Armor Integrity Analysis 40 Recoil Reduction 6 Matter Filtering 30 Offensive Hacking 36 Defensive Hacking 12 Relay Coupler Types 1 Relay Coupler Value 19 Authchip Count 6 Item Schematics ----------------- Imp. Utility Shielding | -8/Materials | Scanalyzed Huge Storage Unit | -8/Materials | Hacked Imp. VTOL Module | -8/Materials | Scanalyzed Cesium-ion Thruster | -8/Materials | Scanalyzed Hrd. Heavy Armor Plating | -8/Storage | Hacked Centrium Heavy Treads | -5/Factory | Scanalyzed Robot Schematics ------------------ M-28 Smith | -8/Materials | Hacked L-41 Fighter | -7/Factory | Hacked P-60 Hacker | -7/Factory | Hacked I-47 Archangel | -5/Factory | Hacked Fabricated ------------ M-28 Smith | x1 | -6/Factory Alien Tech Used ----------------- None Achievements -------------- None Challenges ------------ None Game ------ Seed MatterMicrowarpPenetrator Manual? 0 Play Time 02:04:22 Cumulative 436.7 hours Start 2023.04.03 @ 18:02:32 End 2023.04.04 @ 11:50:39 Sessions 7 Manual Loads 0 Difficulty Rogue Special Mode None Game No. 474 Rogue 465 Adventurer 8 Explorer 1 Win Type - Total 7 Types 4/1/2/0/0/0/0/0/0 Lore% 79 Gallery% 90 Achievement% 71 Wizard Run 0 Options --------- ASCII 0 Keyboard 0 Movement Numpad Keybinds 1 Fullscreen 2 Font 18/Terminus Map View 76x50 Tactical HUD 1 Map Filters NONE Filters NONE Steam 1 RUN: a9a7e2f5-f0a5-491e-9cad-22c1820287bb